fUST/lending_fUST_20241007
["ID","MTS","AMOUNT","RATE_DAILY","PERIOD"]
[339977608,1728245518933,-611.72,0.00019452,2]
[339977609,1728245518943,-564.15,0.00019452,2]
[339977610,1728245518953,-608.82,0.00019452,2]
[339977611,1728245518963,-1003.97,0.00019452,2]
[339977612,1728245518972,-605.81,0.00019452,2]
[339977613,1728245518981,-541.62,0.00019452,2]
[339977614,1728245518991,-452.48747044,0.00019452,2]
[339977615,1728245519000,-589.17,0.00019452,2]
[339977616,1728245519010,-1166.46,0.00019452,2]
[339977617,1728245519019,-606.03,0.00019452,2]
[339977618,1728245519029,-578.55,0.00019452,2]
[339977619,1728245519038,-500.0,0.00019452,2]
[339977620,1728245519049,-526.31,0.00019452,2]
[339977621,1728245519059,-500.0,0.00019452,2]
[339977622,1728245519069,-616.98,0.00019452,2]
[339977623,1728245519080,-500.0,0.00019452,2]
[339977624,1728245519092,-261.61595634,0.00019452,2]
[339977625,1728245519102,-667.06,0.00019452,2]
[339977626,1728245519113,-1854.38,0.00019452,2]
[339977627,1728245519125,-2983.12,0.00019452,2]
[339977628,1728245519135,-667.95,0.00019452,2]
[339977629,1728245519145,-830.07,0.00019452,2]
[339977630,1728245519157,-518.7,0.00019452,2]
[339977631,1728245519171,-2165.89,0.00019452,2]
[339977632,1728245519182,-3094.43,0.00019452,2]
[339977633,1728245519192,-880.03,0.00019452,2]
[339977634,1728245519202,-701.44,0.00019452,2]
[339977635,1728245519212,-4696.79,0.00019452,2]
[339977636,1728245519222,-505.3,0.00019452,2]
[339977637,1728245519233,-500.0,0.00019452,2]
[339977638,1728245519242,-507.4,0.00019452,2]
[339977639,1728245519253,-224.172624,0.00019616,2]
[339977640,1728245519265,-461.0,0.00019725,2]
[339977641,1728245519276,-811.88,0.00019726,2]
[339977642,1728245519287,-538.21,0.00019726,2]
[339977643,1728245519298,-690.31,0.00019726,2]
[339977644,1728245519309,-753.75,0.00019726,2]
[339977645,1728245519320,-588.35844153,0.00019726,2]
[339977646,1728245519330,-441.67470092,0.00019726,2]
[339977647,1728245519341,-560.51,0.00019726,2]
[339977648,1728245519354,-550.29296555,0.00019726,2]
[339977649,1728245519364,-693.21,0.00019726,2]
[339977650,1728245519373,-750.67,0.00019726,2]
[339977651,1728245519383,-624.79,0.00019726,2]
[339977652,1728245519392,-621.15,0.00019726,2]
[339977653,1728245519402,-573.68,0.00019726,2]
[339977654,1728245519412,-402.82817929,0.00019726,2]
[339977655,1728245519421,-566.65,0.00019726,2]
[339977656,1728245519431,-1154.19,0.00019726,2]
[339977657,1728245519441,-511.18,0.00019726,2]
[339977658,1728245519451,-1179.38,0.00019726,2]
[339977659,1728245519462,-751.93,0.00019726,2]
[339977660,1728245519472,-407.71779788,0.00019726,2]
[339977661,1728245519482,-734.54,0.00019726,2]
[339977662,1728245519491,-500.0,0.00019726,2]
[339977663,1728245519501,-782.03,0.00019726,2]
[339977664,1728245519510,-600.57,0.00019726,2]
[339977665,1728245519520,-1034.12,0.00019726,2]
[339977666,1728245519531,-567.02,0.00019726,2]
[339977667,1728245519541,-547.51,0.00019726,2]
[339977668,1728245519551,-620.41,0.00019726,2]
[339977669,1728245519561,-622.64,0.00019726,2]
[339977670,1728245519572,-1766.09,0.00019726,2]
[339977671,1728245519583,-1018.45,0.00019726,2]
[339977672,1728245519594,-336.72,0.00019726,2]
[339977673,1728245519607,-646.49,0.00019726,2]
[339977674,1728245519618,-548.58,0.00019726,2]
[339977675,1728245519628,-642.06,0.00019726,2]
[339977676,1728245519638,-678.84,0.00019726,2]
[339977677,1728245519651,-732.29,0.00019726,2]
[339977678,1728245519662,-744.55,0.00019726,2]
[339977679,1728245519673,-253.12424428,0.00019726,2]
[339977680,1728245519684,-701.53,0.00019726,2]
[339977681,1728245519695,-977.67,0.00019726,2]
[339977682,1728245519705,-631.97,0.00019726,2]
[339977683,1728245519715,-740.81,0.00019726,2]
[339977684,1728245519726,-566.27,0.00019726,2]
[339977685,1728245519738,-1278.33,0.00019726,2]
[339977686,1728245519748,-711.1,0.00019726,2]
[339977687,1728245519759,-1687.43,0.00019726,2]
[339977688,1728245519769,-559.4,0.00019726,2]
[339977689,1728245519779,-570.64,0.00019726,2]
[339977690,1728245519789,-620.94,0.00019726,2]
[339977691,1728245519799,-590.68,0.00019726,2]
[339977692,1728245519808,-525.69,0.00019726,2]
[339977693,1728245519818,-731.95,0.00019726,2]
[339977694,1728245519828,-749.78,0.00019726,2]
[339977695,1728245519838,-348.45711562,0.00019726,2]
[339977696,1728245519848,-500.0,0.00019726,2]
[339977697,1728245519858,-700.34,0.00019726,2]
[339977698,1728245519868,-850.21,0.00019726,2]
[339977699,1728245519879,-793.43,0.00019726,2]
[339977700,1728245519889,-681.81,0.00019726,2]
[339977701,1728245519899,-905.5,0.00019726,2]
[339977702,1728245519909,-618.07,0.00019726,2]
[339977703,1728245519919,-1004.36,0.00019726,2]
[339977704,1728245519929,-769.79,0.00019726,2]
[339977705,1728245519938,-556.25,0.00019726,2]
[339977706,1728245519948,-704.99,0.00019726,2]
[339977707,1728245519958,-511.68,0.00019726,2]
[339977708,1728245519968,-716.88,0.00019726,2]
[339977709,1728245519977,-1213.0,0.00019726,2]
[339977710,1728245519988,-502.96,0.00019726,2]
[339977711,1728245519999,-640.83,0.00019726,2]
[339977712,1728245520010,-799.58,0.00019726,2]
[339977713,1728245520020,-2198.44,0.00019726,2]
[339977714,1728245520030,-23220.06,0.00019726,2]
[339977715,1728245520039,-513.24,0.00019726,2]
[339977716,1728245520049,-1825.72,0.00019726,2]
[339977717,1728245520059,-689.01,0.00019726,2]
[339977718,1728245520068,-3809.25,0.00019726,2]
[339977719,1728245520078,-701.74,0.00019726,2]
[339977720,1728245520088,-1068.37,0.00019726,2]
[339977721,1728245520098,-1019.82,0.00019726,2]
[339977722,1728245520107,-1687.94,0.00019726,2]
[339977723,1728245520116,-272.81459672,0.00019726,2]
[339977724,1728245520126,-611.72,0.00019726,2]
[339977725,1728245520136,-564.15,0.00019726,2]
[339977726,1728245520145,-608.82,0.00019726,2]
[339977727,1728245520155,-1003.97,0.00019726,2]
[339977728,1728245520169,-605.81,0.00019726,2]
[339977729,1728245520179,-541.62,0.00019726,2]
[339977730,1728245520189,-589.17,0.00019726,2]
[339977731,1728245520199,-1166.46,0.00019726,2]
[339977732,1728245520209,-606.03,0.00019726,2]
[339977733,1728245520219,-578.55,0.00019726,2]
[339977734,1728245520229,-305.54685008,0.00019726,2]
[339977735,1728245520239,-526.31,0.00019726,2]
[339977736,1728245520249,-500.0,0.00019726,2]
[339977737,1728245520259,-616.98,0.00019726,2]
[339977738,1728245520269,-456.16690793,0.00019726,2]
[339977739,1728245520280,-667.06,0.00019726,2]
[339977740,1728245520291,-1854.38,0.00019726,2]
[339977741,1728245520301,-2983.12,0.00019726,2]
[339977742,1728245520310,-667.95,0.00019726,2]
[339977743,1728245520320,-830.07,0.00019726,2]
[339977744,1728245520330,-518.7,0.00019726,2]
[339977745,1728245520340,-2165.89,0.00019726,2]
[339977746,1728245520349,-3094.43,0.00019726,2]
[339977747,1728245520359,-880.03,0.00019726,2]
[339977748,1728245520369,-701.44,0.00019726,2]
[339977749,1728245520379,-4696.79,0.00019726,2]
[339977750,1728245520389,-505.3,0.00019726,2]
[339977751,1728245520399,-158.81303783,0.00019726,2]
[339977752,1728245520410,-507.4,0.00019726,2]
[339977753,1728245520420,-2000.0,0.000198,10]
[339977754,1728245520430,-152.77,0.000199,31]
[339977755,1728245520440,-152.77,0.000199,31]
[339977756,1728245520450,-152.77,0.000199,31]
[339977757,1728245520460,-152.77,0.000199,31]
[339977758,1728245520469,-152.77,0.000199,31]
[339977759,1728245520479,-152.77,0.000199,31]
[339977760,1728245520488,-152.77,0.000199,31]
[339977761,1728245520499,-152.77,0.000199,31]
[339977762,1728245520510,-1613.0,0.00019917,2]
[339977763,1728245520519,-300.0,0.0001996,2]
[339977764,1728245520529,-635.48305392,0.0001998,2]
[339977765,1728245520540,-160.0,0.00019989,2]
[339977766,1728245520551,-160.0,0.00019989,2]
[339977767,1728245520560,-294533.0,0.0001999,2]
[339977768,1728245520571,-160.0,0.00019999,2]
[339977769,1728245520581,-468.86428942,0.00019999,2]
[339977770,1728245520593,-149.88,0.0002,2]
[339977771,1728245520604,-2000.0,0.0002,21]
[339977772,1728245520614,-160.0,0.0002,2]
[339977773,1728245520624,-3096.27340211,0.0002,2]
[339977774,1728245520636,-312.90156845,0.0002,20]
[339977775,1728245520647,-515.0,0.0002,2]
[339977776,1728245520659,-811.95328121,0.0002,2]
[339977777,1728245520670,-2024.10678383,0.0002,2]
[339977778,1728245520682,-1315.24748942,0.0002,2]
[339977779,1728245520694,-400.0,0.0002,4]
[339977780,1728245520706,-1118.60599033,0.0002,10]
[339977781,1728245520718,-150074.96161575,0.0002,2]
[339977782,1728245520730,-94759.43048469,0.0002,2]
[339977783,1728245520741,-185.0,0.0002,2]
[339977784,1728245520752,-500.0,0.0002,2]
[339977785,1728245520763,-538.26067283,0.0002,2]
[339977786,1728245520775,-690.53736289,0.0002,2]
[339977787,1728245520786,-753.80785672,0.0002,2]
[339977788,1728245520797,-509.0,0.0002,2]
[339977789,1728245520809,-510.0,0.0002,2]
[339977790,1728245520819,-560.64334091,0.0002,2]
[339977791,1728245520831,-693.36611044,0.0002,2]
[339977792,1728245520843,-750.87,0.0002,2]
[339977793,1728245520853,-624.82264009,0.0002,2]
[339977794,1728245520863,-621.3395831,0.0002,2]
[339977795,1728245520874,-573.74724873,0.0002,2]
[339977796,1728245520884,-566.86649508,0.0002,2]
[339977797,1728245520895,-1154.20052914,0.0002,2]
[339977798,1728245520908,-511.29419949,0.0002,2]
[339977799,1728245520920,-1179.58850446,0.0002,2]
[339977800,1728245520933,-752.16672331,0.0002,2]
[339977801,1728245520945,-734.66328264,0.0002,2]
[339977802,1728245520955,-448.17857277,0.0002,2]
[339977803,1728245520967,-782.131213,0.0002,2]
[339977804,1728245520977,-600.74788848,0.0002,2]
[339977805,1728245520988,-1034.22921148,0.0002,2]
[339977806,1728245521000,-567.10927501,0.0002,2]
[339977807,1728245521010,-547.60011181,0.0002,2]
[339977808,1728245521020,-620.57449074,0.0002,2]
[339977809,1728245521031,-622.80759512,0.0002,2]
[339977810,1728245521042,-1766.21627056,0.0002,2]
[339977811,1728245521051,-1018.6002672,0.0002,2]
[339977812,1728245521061,-336.88718263,0.0002,2]
[339977813,1728245521074,-646.60873402,0.0002,2]
[339977814,1728245521084,-548.76654765,0.0002,2]
[339977815,1728245521095,-642.17861602,0.0002,2]
[339977816,1728245521107,-678.88224782,0.0002,2]
[339977817,1728245521118,-732.29838643,0.0002,2]
[339977818,1728245521133,-744.65182581,0.0002,2]
[339977819,1728245521143,-701.67600178,0.0002,2]
[339977820,1728245521154,-977.76556537,0.0002,2]
[339977821,1728245521168,-632.01,0.0002,2]
[339977822,1728245521178,-740.82070576,0.0002,2]
[339977823,1728245521187,-566.49003596,0.0002,2]
[339977824,1728245521197,-1278.34051165,0.0002,2]
[339977825,1728245521207,-711.27854879,0.0002,2]
[339977826,1728245521217,-6899.15415978,0.0002,2]
[339977827,1728245521227,-1687.47790338,0.0002,2]
[339977828,1728245521236,-1360.77162717,0.0002,2]
[339977829,1728245521246,-559.57839877,0.0002,2]
[339977830,1728245521256,-570.83911757,0.0002,2]
[339977831,1728245521266,-620.95396105,0.0002,2]
[339977832,1728245521276,-590.88718304,0.0002,2]
[339977833,1728245521285,-525.74634097,0.0002,2]
[339977834,1728245521296,-732.10257958,0.0002,2]
[339977835,1728245521306,-749.98541012,0.0002,2]
[339977836,1728245521316,-208.61552257,0.0002,2]
[339977837,1728245521326,-700.5471622,0.0002,2]
[339977838,1728245521335,-850.31937574,0.0002,2]
[339977839,1728245521345,-793.49276528,0.0002,2]
[339977840,1728245521355,-681.8257519,0.0002,2]
[339977841,1728245521365,-905.64819307,0.0002,2]
[339977842,1728245521375,-618.11461134,0.0002,2]
[339977843,1728245521384,-1004.46,0.0002,2]
[339977844,1728245521394,-769.95010342,0.0002,2]
[339977845,1728245521404,-705.18923851,0.0002,2]
[339977846,1728245521414,-556.36859648,0.0002,2]
[339977847,1728245521424,-511.7639856,0.0002,2]
[339977848,1728245521433,-717.03473814,0.0002,2]
[339977849,1728245521444,-1213.14089015,0.0002,2]
[339977850,1728245521454,-503.02632078,0.0002,2]
[339977851,1728245521464,-640.92912204,0.0002,2]
[339977852,1728245521474,-799.71410061,0.0002,2]
[339977853,1728245521484,-2198.58356668,0.0002,2]
[339977854,1728245521494,-23220.24696509,0.0002,2]
[339977855,1728245521504,-513.47241327,0.0002,2]
[339977856,1728245521514,-1825.84400742,0.0002,2]
[339977857,1728245521524,-689.20201248,0.0002,2]
[339977858,1728245521534,-3809.3800357,0.0002,2]
[339977859,1728245521543,-701.83038714,0.0002,2]
[339977860,1728245521553,-1068.58425843,0.0002,2]
[339977861,1728245521563,-1019.93872575,0.0002,2]
[339977862,1728245521572,-1687.97968968,0.0002,2]
[339977863,1728245521582,-611.78238242,0.0002,2]
[339977864,1728245521592,-564.31119578,0.0002,2]
[339977865,1728245521601,-608.89341809,0.0002,2]
[339977866,1728245521611,-1003.97026828,0.0002,2]
[339977867,1728245521622,-605.93197765,0.0002,2]
[339977868,1728245521631,-541.76379873,0.0002,2]
[339977869,1728245521640,-589.33743126,0.0002,2]
[339977870,1728245521651,-1166.55073858,0.0002,2]
[339977871,1728245521660,-606.16115328,0.0002,2]
[339977872,1728245521670,-578.60331193,0.0002,2]
[339977873,1728245521680,-526.38575801,0.0002,2]
[339977874,1728245521690,-487.52926002,0.0002,2]
[339977875,1728245521700,-617.01461446,0.0002,2]
[339977876,1728245521710,-667.1384367,0.0002,2]
[339977877,1728245521720,-1854.42531651,0.0002,2]
[339977878,1728245521730,-2983.35418963,0.0002,2]
[339977879,1728245521740,-668.10573249,0.0002,2]
[339977880,1728245521750,-830.27,0.0002,2]
[339977881,1728245521913,-518.91539121,0.0002,2]
[339977882,1728245521923,-2166.042978,0.0002,2]
[339977883,1728245521933,-880.20287568,0.0002,2]
[339977884,1728245521942,-3094.58330027,0.0002,2]
[339977885,1728245521951,-701.65477316,0.0002,2]
[339977886,1728245521961,-4696.79,0.0002,2]
[339977887,1728245521971,-505.32252372,0.0002,2]
[339977888,1728245521982,-507.62093689,0.0002,2]
[339977889,1728245521991,-160.0,0.00020179,2]
[339977890,1728245522001,-1870910.5999845,0.0002018,5]
[339977891,1728245522010,-282.6441822,0.0002018,7]
[339977892,1728245522020,-19838.59852021,0.00020377,2]
[339977893,1728245522030,-3507.999414,0.00020548,2]
[339977894,1728245522039,-4287.18417003,0.0002066,7]
[339977895,1728245522049,-1349.0,0.00020787,25]
[339977896,1728245522059,-610.35565362,0.00020898,2]
[339977897,1728245522068,-593.73347027,0.00020965,2]
[339977898,1728245522078,-500.0,0.00020965,2]
[339977899,1728245522088,-500.0,0.00020965,2]
[339977900,1728245522097,-506.76894159,0.00020965,2]
[339977901,1728245522106,-500.0,0.00020965,2]
[339977902,1728245522116,-500.0,0.00020965,2]
[339977903,1728245522125,-500.0,0.00020965,2]
[339977904,1728245522135,-500.0,0.00020965,2]
[339977905,1728245522144,-882.49868777,0.00020965,2]
[339977906,1728245522154,-518.47563101,0.00020965,2]
[339977907,1728245522167,-500.0,0.00020965,2]
[339977908,1728245522176,-500.0,0.00020965,2]
[339977909,1728245522186,-500.0,0.00020965,2]
[339977910,1728245522196,-510.19449434,0.00020965,2]
[339977911,1728245522206,-500.0,0.00020965,2]
[339977912,1728245522215,-500.0,0.00020965,2]
[339977913,1728245522225,-500.0,0.00020965,2]
[339977914,1728245522235,-500.0,0.00020965,2]
[339977915,1728245522247,-997.58389287,0.00020965,2]
[339977916,1728245522256,-500.0,0.00020965,2]
[339977917,1728245522267,-500.0,0.00020965,2]
[339977918,1728245522276,-500.0,0.00020965,2]
[339977919,1728245522286,-500.0,0.00020965,2]
[339977920,1728245522296,-500.0,0.00020965,2]
[339977921,1728245522305,-500.0,0.00020965,2]
[339977922,1728245522315,-500.0,0.00020965,2]
[339977923,1728245522325,-500.0,0.00020965,2]
[339977924,1728245522335,-500.0,0.00020965,2]
[339977925,1728245522344,-500.0,0.00020965,2]
[339977926,1728245522354,-500.0,0.00020965,2]
[339977927,1728245522363,-500.0,0.00020965,2]
[339977928,1728245522373,-500.0,0.00020965,2]
[339977929,1728245522383,-500.0,0.00020965,2]
[339977930,1728245522393,-500.0,0.00020965,2]
[339977931,1728245522402,-500.0,0.00020965,2]
[339977932,1728245522412,-500.0,0.00020965,2]
[339977933,1728245522423,-627.64183847,0.00020965,2]
[339977934,1728245522432,-500.0,0.00020965,2]
[339977935,1728245522442,-584.17666791,0.00020965,2]
[339977936,1728245522451,-150.0,0.00020973,2]
[339977937,1728245522460,-440.74583984,0.00021,3]
[339977938,1728245522470,-130000.0,0.00021,2]
[339977939,1728245522480,-172004.76366574,0.00021,2]
[339977940,1728245522489,-10000.0,0.00021,5]
[339977941,1728245522499,-453.37171426,0.00021,2]
[339977942,1728245522509,-1300.87308761,0.00021,2]
[339977943,1728245522518,-1500.0,0.00021,2]
[339977944,1728245522528,-1500.0,0.00021,2]
[339977945,1728245522538,-1500.0,0.00021,2]
[339977946,1728245522547,-1500.0,0.00021,2]
[339977947,1728245522557,-1505.23,0.00021,2]
[339977948,1728245522566,-1500.0,0.00021,2]
[339977949,1728245522575,-21086.14315542,0.00021,2]
[339977950,1728245522585,-519.0,0.00021,2]
[339977951,1728245522595,-3000.0,0.00021,2]
[339977952,1728245522604,-6898.0,0.00021,2]
[339977953,1728245522614,-1359.0,0.00021,2]
[339977954,1728245522624,-1000.0,0.0002101,2]
[339977955,1728245522634,-1000.0,0.0002101,2]
[339977956,1728245522644,-1000.0,0.0002101,2]
[339977957,1728245522654,-1000.0,0.0002101,2]
[339977958,1728245522664,-1000.0,0.0002101,2]
[339977959,1728245522673,-1000.0,0.0002101,2]
[339977960,1728245522683,-867.26321115,0.0002101,2]
[339977961,1728245522693,-150.0,0.0002101,2]
[339977962,1728245522703,-300.0,0.0002101,2]
[339977963,1728245522713,-2277.65848171,0.0002101,4]
[339977964,1728245522722,-3000.0,0.0002101,2]
[339977965,1728245522732,-3000.0,0.0002102,2]
[339977966,1728245522742,-3000.0,0.0002103,2]
[339977967,1728245522751,-3000.0,0.0002104,2]
[339977968,1728245522761,-3000.0,0.0002105,2]
[339977969,1728245522770,-3000.0,0.0002106,2]
[339977970,1728245522779,-3000.0,0.0002107,2]
[339977971,1728245522789,-3000.0,0.0002108,2]
[339977972,1728245522799,-3000.0,0.0002109,2]
[339977973,1728245522808,-3000.0,0.000211,2]
[339977974,1728245522817,-3000.0,0.0002111,2]
[339977975,1728245522827,-3000.0,0.0002112,2]
[339977976,1728245522837,-3000.0,0.0002113,2]
[339977977,1728245522846,-3000.0,0.0002114,2]
[339977978,1728245522855,-3000.0,0.0002115,2]
[339977979,1728245522864,-3000.0,0.0002116,2]
[339977980,1728245522874,-3000.0,0.0002117,2]
[339977981,1728245522884,-3000.0,0.0002118,2]
[339977982,1728245522893,-3000.0,0.0002119,2]
[339977983,1728245522902,-507.0099771,0.000212,2]
[339977984,1728245522912,-3000.0,0.000212,2]
[339977985,1728245522922,-3000.0,0.0002121,2]
[339977986,1728245522932,-3000.0,0.0002122,2]
[339977987,1728245522942,-3000.0,0.0002123,2]
[339977988,1728245522952,-3000.0,0.0002124,2]
[339977989,1728245522962,-3000.0,0.0002125,2]
[339977990,1728245522972,-3000.0,0.0002126,2]
[339977991,1728245522981,-3000.0,0.0002127,2]
[339977992,1728245522991,-3000.0,0.0002128,2]
[339977993,1728245523001,-3000.0,0.0002129,2]
[339977994,1728245523010,-3000.0,0.000213,2]
[339977995,1728245523021,-3000.0,0.0002131,2]
[339977996,1728245523030,-3000.0,0.0002132,2]
[339977997,1728245523040,-3000.0,0.0002133,2]
[339977998,1728245523051,-18564.2277067,0.0002134,2]
[339977999,1728245523060,-3000.0,0.0002134,2]
[339978000,1728245523070,-1000.0,0.000215,2]
[339978001,1728245523081,-250.0,0.00021521,2]
[339978002,1728245523091,-152.77,0.000216,31]
[339978003,1728245523102,-152.77,0.000216,31]
[339978004,1728245523112,-152.77,0.000216,31]
[339978005,1728245523122,-152.77,0.000216,31]
[339978006,1728245523132,-152.77,0.000216,31]
[339978007,1728245523142,-152.77,0.000216,31]
[339978008,1728245523152,-152.77,0.000216,31]
[339978009,1728245523167,-152.77,0.000216,31]
[339978010,1728245523177,-152.77,0.000216,31]
[339978011,1728245523188,-152.77,0.000216,31]
[339978012,1728245523198,-1000.0,0.000218,2]
[339978013,1728245523208,-1996.0,0.00021853,2]
[339978014,1728245523218,-155.68357244,0.0002189,2]
[339978015,1728245523227,-2000.0,0.000219,3]
[339978016,1728245523238,-7654.35,0.000219,7]
[339978017,1728245523248,-500.0,0.00021917,2]
[339978018,1728245523258,-500.0,0.00021917,2]
[339978019,1728245523268,-500.0,0.00021917,2]
[339978020,1728245523277,-500.0,0.00021917,2]
[339978021,1728245523288,-500.0,0.00021917,2]
[339978022,1728245523298,-500.0,0.00021917,2]
[339978023,1728245523308,-500.0,0.00021917,2]
[339978024,1728245523319,-500.0,0.00021917,2]
[339978025,1728245523329,-500.0,0.00021917,2]
[339978026,1728245523339,-523.74588864,0.00021917,2]
[339978027,1728245523350,-153.24782486,0.00021917,120]
[339978028,1728245523360,-1000.0,0.00021917,5]
[339978029,1728245523370,-1000.0,0.00021917,5]
[339978030,1728245523381,-1000.0,0.00021917,5]
[339978031,1728245523391,-1000.0,0.00021917,5]
[339978032,1728245523402,-819.38244215,0.00021917,5]
[339978033,1728245523411,-1264.8821413,0.00021918,7]
[339978034,1728245523423,-150.0,0.00021918,2]
[339978035,1728245523433,-157.21882003,0.0002192,7]
[339978036,1728245523444,-157.21882003,0.0002192,7]
[339978037,1728245523454,-157.21882003,0.0002192,7]
[339978038,1728245523464,-157.21882003,0.0002192,7]
[339978039,1728245523474,-157.21882003,0.0002192,7]
[339978040,1728245523484,-157.21882003,0.0002192,7]
[339978041,1728245523495,-157.21882003,0.0002192,7]
[339978042,1728245523506,-157.21882003,0.0002192,7]
[339978043,1728245523516,-157.71,0.0002192,7]
[339978044,1728245523527,-283.06887606,0.0002192,7]
[339978045,1728245523537,-283.06887606,0.0002192,7]
[339978046,1728245523547,-283.06887606,0.0002192,7]
[339978047,1728245523558,-283.06887606,0.0002192,7]
[339978048,1728245523569,-283.06887606,0.0002192,7]
[339978049,1728245523579,-283.06887606,0.0002192,7]
[339978050,1728245523592,-283.06887606,0.0002192,7]
[339978051,1728245523602,-283.06887606,0.0002192,7]
[339978052,1728245523612,-283.06887606,0.0002192,7]
[339978053,1728245523623,-283.06887606,0.0002192,7]
[339978054,1728245523635,-283.06887606,0.0002192,7]
[339978055,1728245523645,-283.06887606,0.0002192,7]
[339978056,1728245523655,-283.06887606,0.0002192,7]
[339978057,1728245523665,-283.06887606,0.0002192,7]
[339978058,1728245523675,-283.06887606,0.0002192,7]
[339978059,1728245523686,-283.06887606,0.0002192,7]
[339978060,1728245523695,-283.06887606,0.0002192,7]
[339978061,1728245523704,-283.06887606,0.0002192,7]
[339978062,1728245523716,-283.06887606,0.0002192,7]
[339978063,1728245523727,-283.56,0.0002192,7]
[339978064,1728245523736,-159.37188782,0.00022,10]
[339978065,1728245523746,-25464.18954216,0.00022,2]
[339978066,1728245523756,-251.22,0.00022,2]
[339978067,1728245523767,-35000.0,0.00022,2]
[339978068,1728245523777,-11051.38269262,0.00022,2]
[339978069,1728245523787,-199.1,0.00022,2]
[339978070,1728245523799,-238.61149845,0.00022,2]
[339978071,1728245523809,-150.0,0.00022,2]
[339978072,1728245523820,-1000.0,0.00022,7]
[339978073,1728245523830,-720.06,0.00022,2]
[339978074,1728245523841,-150.0,0.00022,2]
[339978075,1728245523852,-8083.683106,0.0002201,16]
[339978076,1728245523862,-202.31730856,0.00022068,2]
[339978077,1728245523874,-1321.21349822,0.000223,2]
[339978078,1728245523884,-250.0,0.00022466,2]
[339978079,1728245523894,-610.35565362,0.00022698,2]
[339978080,1728245523905,-240.7916886,0.00023,2]
[339978081,1728245523915,-150.0,0.00023,5]
[339978082,1728245523925,-339.0,0.00023,2]
[339978083,1728245523934,-200.0,0.00023,2]
[339978084,1728245523945,-200.0,0.00023,2]
[339978085,1728245523957,-360.03,0.00023,7]
[339978086,1728245523968,-200.0,0.00023,2]
[339978087,1728245523978,-257.01,0.00023013,2]
[339978088,1728245523988,-350.0,0.00023014,2]
[339978089,1728245523999,-159.0,0.000231,120]
[339978090,1728245524010,-500.0,0.00023287,2]
[339978091,1728245524021,-500.0,0.00023287,2]
[339978092,1728245524032,-500.0,0.00023287,2]
[339978093,1728245524042,-500.0,0.00023287,2]
[339978094,1728245524052,-500.0,0.00023287,2]
[339978095,1728245524062,-500.0,0.00023287,2]
[339978096,1728245524071,-500.0,0.00023287,2]
[339978097,1728245524081,-500.0,0.00023287,2]
[339978098,1728245524090,-500.0,0.00023287,2]
[339978099,1728245524100,-500.0,0.00023287,2]
[339978100,1728245524110,-500.0,0.00023287,2]
[339978101,1728245524119,-500.0,0.00023287,2]
[339978102,1728245524130,-500.0,0.00023287,2]
[339978103,1728245524148,-500.0,0.00023287,2]
[339978104,1728245524159,-500.0,0.00023287,2]
[339978105,1728245524171,-500.0,0.00023287,2]
[339978106,1728245524181,-500.0,0.00023287,2]
[339978107,1728245524191,-500.0,0.00023287,2]